[Event "VII Open Internacional Quart de Poblet"]
[Site "Quart de Poblet, Spain"]
[Date "2019.08.11"]
[Round "9.7"]
[White "Galvan, Jesus"]
[Black "Garcia Diaz, Alejandro"]
[Result "1-0"]
[TimeControl "90m +30s por jugada"]
[WhiteFideId "3800458"]
[BlackFideId "22202463"]
[WhiteElo "2220"]
[BlackElo "1806"]

1. d4 {[%clk 01:19:01]} {[%emt 00:12:06]} Nf6 {[%clk 01:30:41]} {[%emt
00:00:21]} 2. c4 {[%clk 01:19:25]} {[%emt 00:00:11]} e5 {[%clk 01:29:49]}
{[%emt 00:01:09]} 3. dxe5 {[%clk 01:19:49]} {[%emt 00:00:12]} Ng4 {[%clk
01:30:15]} 4. Bf4 {[%clk 01:20:14]} {[%emt 00:00:39]} Nc6 {[%clk 01:29:51]}
{[%emt 00:00:17]} 5. Nf3 {[%clk 01:20:38]} {[%emt 00:00:09]} Bb4+ {[%clk
01:30:17]} {[%emt 00:00:10]} 6. Nbd2 {[%clk 01:21:02]} Qe7 {[%clk 01:30:05]}
{[%emt 00:00:46]} 7. e3 {[%clk 01:19:47]} {[%emt 00:01:41]} Ngxe5 {[%clk
01:28:21]} {[%emt 00:02:14]} 8. Nxe5 {[%clk 01:20:10]} {[%emt 00:00:08]} Nxe5
{[%clk 01:28:19]} {[%emt 00:00:29]} 9. Be2 {[%clk 01:20:35]} {[%emt 00:00:07]}
O-O {[%clk 01:25:09]} {[%emt 00:03:37]} 10. O-O {[%clk 01:20:59]} {[%emt
00:00:23]} a5 {[%clk 01:16:44]} {[%emt 00:08:39]} 11. a3 {[%clk 01:15:49]}
{[%emt 00:05:39]} Bxd2 {[%clk 01:08:48]} {[%emt 00:08:29]} 12. Qxd2 {[%clk
01:16:14]} {[%emt 00:00:07]} Ra6 {[%clk 01:08:25]} {[%emt 00:01:05]} 13. c5
{[%clk 01:12:04]} {[%emt 00:04:24]} Rg6 {[%clk 01:08:31]} {[%emt 00:00:23]} 14.
Qxa5 {[%clk 01:06:28]} {[%emt 00:06:08]} d6 {[%clk 01:05:08]} {[%emt 00:03:55]}
15. cxd6 {[%clk 01:00:39]} {[%emt 00:06:17]} cxd6 {[%clk 01:05:18]} {[%emt
00:00:18]} 16. Bh5 {[%clk 00:59:38]} {[%emt 00:01:30]} Re6 {[%clk 01:03:21]}
{[%emt 00:02:27]} 17. Rfd1 {[%clk 00:58:32]} {[%emt 00:01:36]} Qh4 {[%clk
01:02:41]} {[%emt 00:01:10]} 18. Be2 {[%clk 00:58:43]} {[%emt 00:00:37]} Rg6
{[%clk 00:59:35]} {[%emt 00:03:22]} 19. Bg3 {[%clk 00:58:50]} {[%emt 00:00:20]}
Qg5 {[%clk 00:59:15]} {[%emt 00:00:50]} 20. Qb4 {[%clk 00:56:33]} {[%emt
00:02:54]} Nc6 {[%clk 00:55:54]} {[%emt 00:03:49]} 21. Qf4 {[%clk 00:56:05]}
{[%emt 00:00:53]} Qxf4 {[%clk 00:51:29]} {[%emt 00:04:57]} 22. Bxf4 {[%clk
00:56:17]} {[%emt 00:00:18]} Bh3 {[%clk 00:51:57]} {[%emt 00:00:03]} 23. Bg3
{[%clk 00:56:38]} {[%emt 00:00:05]} Be6 {[%clk 00:50:11]} {[%emt 00:02:16]} 24.
Rxd6 {[%clk 00:55:51]} {[%emt 00:01:17]} Ne7 {[%clk 00:45:56]} {[%emt
00:04:48]} 25. e4 {[%clk 00:55:42]} {[%emt 00:00:36]} Bb3 {[%clk 00:42:34]}
{[%emt 00:04:27]} 26. Rd7 {[%clk 00:50:09]} {[%emt 00:05:29]} Nc6 {[%clk
00:41:07]} {[%emt 00:01:56]} 27. Rxb7 {[%clk 00:48:12]} {[%emt 00:02:43]} Nd4
{[%clk 00:39:50]} {[%emt 00:01:31]} 28. Bd3 {[%clk 00:48:28]} {[%emt 00:00:17]}
Rc6 {[%clk 00:37:43]} {[%emt 00:02:37]} 29. Be5 {[%clk 00:45:10]} {[%emt
00:03:53]} Rfc8 {[%clk 00:36:52]} {[%emt 00:01:13]} 30. Bxd4 {[%clk 00:42:11]}
{[%emt 00:03:35]} 1-0

[Event "VII Open Internacional Quart de Poblet"]
[Site "Quart de Poblet, Spain"]
[Date "2019.08.11"]
[Round "9.8"]
[White "Ceferino Valles, Juan Carlos"]
[Black "Gonzalez Aguirre, Luis"]
[Result "0-1"]
[TimeControl "90m +30s por jugada"]
[WhiteFideId "54701546"]
[BlackFideId "2202000"]
[WhiteElo "1593"]
[BlackElo "2112"]

1. e4 {[%clk 01:30:39]} {[%emt 00:00:27]} c6 {[%clk 01:29:42]} {[%emt
00:01:12]} 2. Nf3 {[%clk 01:30:58]} {[%emt 00:00:12]} d5 {[%clk 01:29:31]}
{[%emt 00:00:43]} 3. Nc3 {[%clk 01:31:20]} {[%emt 00:00:06]} Bg4 {[%clk
01:27:58]} {[%emt 00:02:04]} 4. d4 {[%clk 01:26:42]} {[%emt 00:05:06]} Nf6
{[%clk 01:22:12]} {[%emt 00:06:16]} 5. h3 {[%emt 00:04:11]} Bxf3 {[%clk
01:20:42]} {[%emt 00:01:37]} 6. gxf3 {[%clk 01:23:28]} {[%emt 00:00:28]} e6
{[%clk 01:20:17]} {[%emt 00:00:51]} 7. a3 {[%clk 01:20:01]} {[%emt 00:03:59]}
Qc7 {[%clk 01:13:07]} {[%emt 00:07:38]} 8. e5 {[%clk 01:19:34]} {[%emt
00:00:57]} Nfd7 {[%clk 01:12:26]} {[%emt 00:01:13]} 9. Ne2 {[%clk 01:19:51]}
{[%emt 00:00:24]} c5 {[%clk 01:11:21]} {[%emt 00:01:28]} 10. c3 {[%clk
01:20:07]} {[%emt 00:00:13]} Nc6 {[%clk 01:08:04]} {[%emt 00:04:05]} 11. f4
{[%clk 01:12:32]} {[%emt 00:07:42]} g6 {[%clk 01:07:39]} {[%emt 00:00:54]} 12.
h4 {[%clk 00:57:53]} {[%emt 00:15:27]} h5 {[%clk 01:03:05]} {[%emt 00:04:45]}
13. Be3 {[%clk 00:41:39]} {[%emt 00:16:45]} Be7 {[%clk 00:56:57]} {[%emt
00:06:40]} 14. Ng1 {[%clk 00:41:41]} {[%emt 00:00:34]} O-O-O {[%clk 00:42:44]}
{[%emt 00:15:10]} 15. b4 {[%clk 00:38:14]} {[%emt 00:03:22]} cxd4 {[%clk
00:42:56]} {[%emt 00:00:18]} 16. cxd4 {[%clk 00:38:05]} {[%emt 00:00:42]} Kb8
{[%clk 00:40:40]} {[%emt 00:02:54]} 17. Rc1 {[%clk 00:33:20]} {[%emt 00:05:11]}
Qb6 {[%clk 00:40:29]} {[%emt 00:00:39]} 18. Rh3 {[%clk 00:18:38]} {[%emt
00:15:12]} Rc8 {[%clk 00:40:15]} {[%emt 00:00:41]} 19. Ne2 {[%clk 00:18:17]}
{[%emt 00:00:52]} Qd8 {[%clk 00:34:33]} {[%emt 00:06:10]} 20. Nc3 {[%clk
00:14:28]} {[%emt 00:04:18]} Nb6 {[%clk 00:30:13]} {[%emt 00:04:52]} 21. Na4
{[%clk 00:13:19]} {[%emt 00:01:39]} Nxa4 {[%clk 00:27:43]} {[%emt 00:02:58]} 22.
Qxa4 {[%clk 00:13:47]} {[%emt 00:00:22]} Qb6 {[%clk 00:24:22]} {[%emt
00:03:33]} 23. Rc5 {[%clk 00:09:30]} {[%emt 00:04:46]} Bxc5 {[%clk 00:18:49]}
{[%emt 00:06:02]} 24. dxc5 {[%clk 00:09:58]} {[%emt 00:00:09]} Qd8 {[%clk
00:19:03]} {[%emt 00:00:09]} 25. Bd2 {[%clk 00:09:39]} {[%emt 00:00:50]} Ne7
{[%clk 00:17:31]} {[%emt 00:02:02]} 26. b5 {[%clk 00:06:39]} {[%emt 00:03:33]}
Rxc5 {[%clk 00:16:06]} {[%emt 00:01:52]} 27. Be3 {[%clk 00:06:32]} {[%emt
00:00:40]} Qc7 {[%clk 00:15:15]} {[%emt 00:01:19]} 28. Bxc5 {[%clk 00:04:26]}
{[%emt 00:02:36]} Qxc5 {[%clk 00:15:43]} {[%emt 00:00:08]} 29. Bd3 {[%clk
00:04:02]} {[%emt 00:00:46]} Rc8 {[%clk 00:14:09]} {[%emt 00:02:05]} 30. Kf1
{[%clk 00:04:19]} {[%emt 00:00:14]} Rc7 {[%clk 00:12:59]} {[%emt 00:01:41]} 31.
Be2 {[%clk 00:02:12]} {[%emt 00:02:39]} Nc8 {[%clk 00:12:20]} {[%emt 00:01:06]}
32. Qb3 {[%clk 00:01:24]} {[%emt 00:01:23]} Qc1+ {[%clk 00:12:13]} {[%emt
00:00:32]} 33. Kg2 {[%clk 00:01:53]} Qxf4 {[%clk 00:12:24]} {[%emt 00:00:19]}
34. a4 {[%clk 00:02:05]} {[%emt 00:00:35]} b6 {[%clk 00:11:27]} {[%emt
00:01:13]} 35. a5 {[%clk 00:00:58]} {[%emt 00:01:34]} bxa5 {[%clk 00:11:32]}
{[%emt 00:00:26]} 0-1

[Event "VII Open Internacional Quart de Poblet"]
[Site "Quart de Poblet, Spain"]
[Date "2019.08.11"]
[Round "9.9"]
[White "Balada Moreno, Jose Luis"]
[Black "Vila Tormo, Eduardo"]
[Result "1-0"]
[TimeControl "90m +30s por jugada"]
[WhiteFideId "2214962"]
[BlackFideId "32063989"]
[WhiteElo "2022"]
[BlackElo "1620"]

1. e4 {[%clk 01:30:54]} {[%emt 00:00:05]} c5 {[%clk 01:30:50]} {[%emt
00:00:10]} 2. Nc3 {[%clk 01:31:04]} {[%emt 00:00:20]} Nc6 {[%clk 01:31:08]}
{[%emt 00:00:11]} 3. f4 {[%clk 01:31:20]} {[%emt 00:00:15]} e6 {[%clk
01:30:32]} {[%emt 00:01:07]} 4. Nf3 {[%clk 01:31:25]} {[%emt 00:00:23]} Nge7
{[%clk 01:27:50]} {[%emt 00:03:12]} 5. d3 {[%clk 01:25:13]} {[%emt 00:06:43]}
d5 {[%clk 01:27:18]} {[%emt 00:01:01]} 6. Qe2 {[%clk 01:25:02]} {[%emt
00:00:41]} d4 {[%clk 01:25:35]} {[%emt 00:02:13]} 7. Nd1 {[%clk 01:24:17]}
{[%emt 00:01:14]} g6 {[%clk 01:21:36]} {[%emt 00:04:30]} 8. Nf2 {[%clk
01:23:54]} {[%emt 00:00:52]} Bg7 {[%clk 01:20:39]} {[%emt 00:01:28]} 9. g3
{[%clk 01:23:10]} {[%emt 00:01:14]} b5 {[%clk 01:12:35]} {[%emt 00:08:34]} 10.
Bg2 {[%clk 01:22:26]} {[%emt 00:01:14]} a5 {[%clk 01:11:40]} {[%emt 00:01:26]}
11. O-O {[%clk 01:22:33]} {[%emt 00:00:22]} Ba6 {[%clk 01:11:18]} {[%emt
00:00:53]} 12. Bh3 {[%clk 01:19:10]} {[%emt 00:03:53]} O-O {[%clk 01:10:15]}
{[%emt 00:01:34]} 13. g4 {[%clk 01:17:03]} {[%emt 00:02:36]} c4 {[%clk
01:09:07]} {[%emt 00:01:38]} 14. f5 {[%clk 01:16:12]} {[%emt 00:01:20]} cxd3
{[%clk 00:59:26]} {[%emt 00:10:12]} 15. cxd3 {[%clk 01:15:37]} {[%emt
00:01:06]} exf5 {[%clk 00:58:29]} {[%emt 00:01:26]} 16. gxf5 {[%clk 01:15:33]}
{[%emt 00:00:34]} Re8 {[%clk 00:53:57]} {[%emt 00:05:02]} 17. Ng4 {[%clk
01:13:59]} {[%emt 00:02:03]} Nxf5 {[%clk 00:52:14]} {[%emt 00:02:14]} 18. Qf2
{[%clk 01:12:45]} {[%emt 00:01:44]} Ne3 {[%clk 00:46:44]} {[%emt 00:06:00]} 19.
Nxe3 {[%clk 01:12:55]} {[%emt 00:00:20]} dxe3 {[%clk 00:47:08]} {[%emt
00:00:06]} 20. Bxe3 {[%clk 01:12:53]} {[%emt 00:00:32]} h6 {[%clk 00:39:20]}
{[%emt 00:08:18]} 21. Rad1 {[%clk 01:10:48]} {[%emt 00:02:35]} Nb4 {[%clk
00:37:19]} {[%emt 00:02:31]} 22. Ne1 {[%clk 01:10:25]} {[%emt 00:00:52]} Qe7
{[%clk 00:28:22]} {[%emt 00:09:28]} 23. Bg2 {[%clk 01:05:46]} {[%emt 00:05:09]}
Rac8 {[%clk 00:28:17]} {[%emt 00:00:35]} 24. Kh1 {[%clk 01:05:55]} {[%emt
00:00:21]} Bb7 {[%clk 00:23:41]} {[%emt 00:05:06]} 25. a3 {[%clk 01:04:36]}
{[%emt 00:01:50]} Na6 {[%clk 00:22:35]} {[%emt 00:01:35]} 26. Qd2 {[%clk
01:04:44]} {[%emt 00:00:22]} Kh7 {[%clk 00:22:04]} {[%emt 00:01:01]} 27. Qxa5
{[%clk 01:04:03]} {[%emt 00:01:11]} Bxb2 {[%clk 00:19:24]} {[%emt 00:03:10]} 28.
Qxb5 {[%clk 01:01:28]} {[%emt 00:03:05]} Bxa3 {[%clk 00:17:04]} {[%emt
00:02:49]} 29. Rb1 {[%clk 01:00:14]} {[%emt 00:01:44]} Bb4 {[%clk 00:15:54]}
{[%emt 00:01:40]} 30. Bd2 {[%clk 00:49:15]} {[%emt 00:11:30]} Bxd2 {[%clk
00:13:41]} {[%emt 00:02:43]} 31. Qxb7 {[%clk 00:49:27]} {[%emt 00:00:18]} Qxb7
{[%clk 00:12:34]} {[%emt 00:01:37]} 32. Rxb7 {[%clk 00:49:34]} {[%emt
00:00:22]} Bxe1 {[%clk 00:08:29]} {[%emt 00:04:36]} 33. Rbxf7+ {[%clk
00:38:29]} {[%emt 00:11:35]} Kg8 {[%clk 00:08:08]} {[%emt 00:00:51]} 34. R7f6
{[%clk 00:38:47]} {[%emt 00:00:13]} Nc5 {[%clk 00:06:26]} {[%emt 00:02:12]} 35.
Rxe1 {[%clk 00:37:27]} {[%emt 00:01:50]} Nxd3 {[%clk 00:05:38]} {[%emt
00:01:18]} 36. Rd1 {[%clk 00:35:01]} {[%emt 00:02:57]} Kg7 {[%clk 00:05:12]}
{[%emt 00:00:56]} 37. Rf3 {[%clk 00:33:37]} {[%emt 00:01:54]} Nc5 {[%clk
00:04:29]} {[%emt 00:01:13]} 38. Re3 {[%clk 00:33:11]} {[%emt 00:00:56]} Re5
{[%clk 00:01:52]} {[%emt 00:03:06]} 39. Kg1 {[%clk 00:32:18]} {[%emt 00:01:24]}
Rce8 {[%clk 00:02:03]} {[%emt 00:00:20]} 40. Rd4 {[%clk 00:31:04]} {[%emt
00:01:44]} Ra8 {[%clk 00:01:12]} {[%emt 00:01:21]} 41. Rd5 {[%clk 00:28:22]}
{[%emt 00:03:11]} Rae8 {[%clk 00:00:57]} {[%emt 00:00:45]} 42. Rxe5 {[%clk
00:28:41]} {[%emt 00:00:11]} Rxe5 {[%clk 00:01:22]} {[%emt 00:00:05]} 43. Kf2
{[%clk 00:28:57]} {[%emt 00:00:14]} Re8 {[%clk 00:00:35]} {[%emt 00:01:17]} 44.
Re2 {[%clk 00:28:59]} {[%emt 00:00:28]} Rf8+ {[%clk 00:00:38]} {[%emt
00:00:27]} 45. Ke3 {[%clk 00:29:18]} {[%emt 00:00:11]} Rd8 {[%clk 00:00:36]}
{[%emt 00:00:33]} 46. Rc2 {[%clk 00:28:34]} {[%emt 00:01:14]} Ne6 {[%clk
00:00:43]} {[%emt 00:00:23]} 47. e5 {[%clk 00:27:55]} {[%emt 00:01:08]} g5
{[%clk 00:00:37]} {[%emt 00:00:37]} 48. Be4 {[%clk 00:25:30]} {[%emt 00:02:55]}
Kf7 {[%clk 00:00:36]} {[%emt 00:00:32]} 49. Rc6 {[%clk 00:24:39]} {[%emt
00:01:20]} Ke7 {[%clk 00:00:36]} {[%emt 00:00:30]} 50. Bf5 {[%clk 00:23:59]}
{[%emt 00:01:10]} Nd4 {[%clk 00:00:34]} {[%emt 00:00:33]} 51. Rc7+ {[%clk
00:24:11]} {[%emt 00:00:18]} Kf8 {[%clk 00:00:34]} {[%emt 00:00:30]} 52. Bg6
{[%clk 00:23:03]} {[%emt 00:01:37]} Ne6 {[%clk 00:00:35]} {[%emt 00:00:30]} 53.
Rf7+ {[%clk 00:20:36]} {[%emt 00:02:56]} Kg8 {[%clk 00:01:02]} {[%emt
00:00:04]} 54. Ra7 {[%clk 00:18:30]} {[%emt 00:02:34]} Nf4 {[%clk 00:00:46]}
{[%emt 00:00:46]} 55. Bf7+ {[%clk 00:17:53]} {[%emt 00:01:07]} Kf8 {[%clk
00:01:07]} {[%emt 00:00:10]} 56. Ke4 {[%clk 00:17:00]} {[%emt 00:01:23]} Rd1
{[%clk 00:00:45]} {[%emt 00:00:51]} 57. Kf5 {[%clk 00:15:44]} {[%emt 00:01:46]}
Rf1 {[%clk 00:00:35]} {[%emt 00:00:40]} 58. Bc4 {[%clk 00:15:26]} {[%emt
00:00:48]} Rc1 {[%clk 00:00:32]} {[%emt 00:00:34]} 59. Ba6 {[%clk 00:13:55]}
{[%emt 00:02:01]} Re1 {[%clk 00:00:37]} {[%emt 00:00:25]} 60. Bc4 {[%clk
00:12:52]} {[%emt 00:01:33]} Rc1 {[%clk 00:00:38]} {[%emt 00:00:29]} 61. Ba2
{[%clk 00:13:09]} {[%emt 00:00:13]} Rc2 {[%clk 00:00:43]} {[%emt 00:00:25]} 62.
Kf6 {[%clk 00:13:09]} {[%emt 00:00:30]} Rc6+ {[%clk 00:00:49]} {[%emt
00:00:25]} 63. e6 {[%clk 00:13:33]} {[%emt 00:00:07]} Nh5+ {[%clk 00:00:55]}
{[%emt 00:00:24]} 64. Ke5 {[%clk 00:11:58]} {[%emt 00:02:04]} Ng7 {[%clk
00:00:38]} {[%emt 00:00:47]} 65. Rf7+ {[%clk 00:10:54]} {[%emt 00:01:34]} Kg8
{[%clk 00:00:36]} {[%emt 00:00:33]} 66. e7 {[%clk 00:10:53]} {[%emt 00:00:30]}
Rc8 {[%clk 00:00:38]} {[%emt 00:00:29]} 67. Rf8+ {[%clk 00:11:09]} 1-0